bitfinex-derivatives/quotes_SOLF0:USTF0_20260312
["timestamp","ask_amount","ask_price","bid_price","bid_amount"]
[1773274673186,2.56434752,86.641,86.572,3.91885958]
[1773274673682,2.48345997,86.641,86.572,3.91885958]
[1773274674182,2.48345997,86.641,86.585,3.91885958]
[1773274674386,2.48345997,86.641,86.598,0.07711597]
[1773274675184,2.54229323,86.655,86.603,3.91885958]
[1773274676083,2.54229323,86.655,86.62,0.08034315]
[1773274680881,2.58117034,86.653,86.62,0.08034315]
[1773274681083,2.58123185,86.651,86.62,0.08034315]
[1773274681387,2.58123185,86.649,86.62,0.08034315]
[1773274681582,2.58123185,86.649,86.593,10.392]
[1773274681784,2.58123185,86.646,86.582,10.394]
[1773274681983,2.58123185,86.644,86.583,3.91885958]
[1773274682188,2.49449185,86.642,86.583,3.91885958]
[1773274682390,2.49449185,86.64,86.583,3.91885958]
[1773274683492,0.08604877,86.62,86.586,3.91885958]
[1773274685494,0.08604877,86.62,86.588,10.393]
[1773274685697,0.08604877,86.62,86.589,3.91885958]
[1773274686899,2.57035885,86.67,86.597,3.91885958]
[1773274687102,2.56489435,86.684,86.601,3.91885958]
[1773274687400,2.56489435,86.684,86.621,3.91885958]
[1773274688196,2.56489435,86.684,86.644,0.07750688]
[1773274692599,2.45481564,86.672,86.591,3.91885958]
[1773274693504,2.4563621,86.671,86.615,10.39]
[1773274694000,0.08456952,86.64,86.615,14.30885958]
[1773274694600,0.08456952,86.64,86.604,10.391]
[1773274694804,0.08456952,86.64,86.604,14.30985958]
[1773274695208,2.4563621,86.658,86.605,3.91885958]
[1773274695709,0.08367091,86.631,86.605,3.91885958]
[1773274696408,2.4563621,86.658,86.608,3.91885958]
[1773274696609,2.4563621,86.658,86.61,3.91885958]
[1773274699712,2.4563621,86.658,86.611,3.91885958]
[1773274701110,2.42433782,86.649,86.609,0.07701259]
[1773274701513,2.42433782,86.639,86.609,0.07701259]
[1773274701714,2.42433782,86.639,86.584,3.74157013]
[1773274702113,2.42433782,86.639,86.615,0.0781488]
[1773274703217,2.29321207,86.629,86.584,3.74157013]
[1773274703411,0.07372624,86.636,86.584,3.74157013]
[1773274703820,2.29321207,86.639,86.584,3.74157013]
[1773274704316,10.387,86.637,86.584,3.74157013]
[1773274704718,2.29321207,86.639,86.588,3.74157013]
[1773274705215,0.07325798,86.622,86.588,3.74157013]
[1773274709112,0.07325798,86.622,86.589,3.74157013]
[1773274709619,2.48560734,86.65,86.591,3.74157013]
[1773274709818,2.2526141,86.652,86.601,3.74157013]
[1773274711019,2.2526141,86.652,86.618,0.07441423]
[1773274714216,4.79946243,86.65,86.618,0.07441423]
[1773274714418,2.3134723,86.649,86.618,0.07441423]
[1773274714622,12.6994723,86.649,86.618,0.07441423]
[1773274714822,2.3134723,86.647,86.601,3.74157013]
[1773274715117,2.3134723,86.647,86.625,0.08124513]
[1773274716325,2.3134723,86.647,86.601,3.74157013]
[1773274716326,0.57756061,86.632,86.601,3.74157013]
[1773274717721,0.08018725,86.625,86.601,3.74157013]
[1773274718628,0.08018725,86.625,86.588,3.74157013]
[1773274718824,0.08018725,86.625,86.546,28.72522529]
[1773274718825,4.79973747,86.62,86.575,14.13657013]
[1773274719126,4.79973747,86.62,86.576,3.74157013]
[1773274719728,0.08304445,86.607,86.576,3.74157013]
[1773274730926,2.32330679,86.606,86.551,10.397]
[1773274731127,2.48599013,86.59,86.552,3.70278122]
[1773274731325,2.32137571,86.589,86.539,3.70278122]
[1773274731730,2.32137571,86.629,86.561,3.70278122]
[1773274732029,2.32137571,86.627,86.571,3.70278122]
[1773274733029,2.40672517,86.619,86.571,3.70278122]
[1773274733432,2.40672517,86.619,86.59,0.08544191]
[1773274734332,2.42733499,86.617,86.59,0.08544191]
[1773274736735,12.72011869,86.615,86.59,0.08544191]
[1773274739345,2.24637134,86.609,86.559,3.70278122]
[1773274740040,4.73236147,86.6,86.559,3.70278122]
[1773274740338,4.73236147,86.6,86.546,3.70278122]
[1773274740339,2.24637134,86.599,86.546,3.70278122]
[1773274740536,2.24637134,86.589,86.546,3.70278122]
[1773274740736,0.08246409,86.588,86.546,3.70278122]
[1773274741332,2.24589996,86.587,86.546,3.70278122]
[1773274741638,0.08246409,86.588,86.546,3.70278122]
[1773274742539,0.08246409,86.588,86.506,34.66]
[1773274742540,0.08246409,86.588,86.551,3.70278122]
[1773274743044,8.13760057,86.607,86.551,3.70278122]
[1773274743240,8.13760057,86.606,86.551,3.70278122]
[1773274743435,0.08383234,86.578,86.551,3.70278122]
[1773274743640,10.49318602,86.608,86.551,3.70278122]
[1773274743946,8.1366081,86.607,86.57,0.08261019]
[1773274744143,8.1366081,86.606,86.57,0.08261019]
[1773274744346,8.14412094,86.605,86.57,0.08261019]
[1773274744546,2.35657792,86.608,86.57,0.08261019]
[1773274744742,2.35657792,86.606,86.57,0.08261019]
[1773274744947,2.48599013,86.6,86.57,0.08261019]
[1773274749552,4.84702003,86.6,86.57,0.08261019]
[1773274750449,2.48599013,86.61,86.57,3.78539141]
[1773274753646,14.54,86.611,86.57,3.78539141]
[1773274754751,2.33839756,86.61,86.57,3.78539141]
[1773274754951,2.33839756,86.609,86.57,0.08261019]
[1773274756752,2.33839756,86.609,86.57,3.78539141]
[1773274760853,14.54,86.611,86.57,3.78539141]
[1773274760854,2.34520103,86.599,86.57,0.08261019]
[1773274761148,4.83119116,86.59,86.555,3.81485788]
[1773274761553,2.48599013,86.58,86.538,3.81485788]
[1773274761954,2.34515131,86.589,86.538,3.81485788]
[1773274762151,2.48599013,86.59,86.538,3.81485788]
[1773274762556,0.07804459,86.572,86.538,3.81485788]
[1773274763453,0.07804459,86.572,86.542,3.81485788]
[1773274764451,0.07804459,86.572,86.543,10.398]
[1773274764648,0.07804459,86.572,86.544,3.81485788]
[1773274765858,12.87599013,86.61,86.553,3.81485788]
[1773274766059,8.06106228,86.609,86.553,3.81485788]
[1773274766253,8.06106228,86.608,86.553,3.81485788]
[1773274766459,8.06106228,86.607,86.553,3.81485788]
[1773274766655,8.06106228,86.606,86.553,3.81485788]
[1773274766857,12.87599013,86.61,86.553,3.81485788]
[1773274767058,8.06327576,86.609,86.571,0.07392171]
[1773274767259,8.06327576,86.608,86.571,0.07392171]
[1773274767562,8.06327576,86.607,86.571,0.07392171]
[1773274767752,8.06327576,86.606,86.571,0.07392171]
[1773274767956,8.06371007,86.605,86.571,0.07392171]
[1773274768155,12.87599013,86.61,86.571,0.07392171]
[1773274768351,8.06395583,86.609,86.571,0.07392171]
[1773274768657,2.41016197,86.607,86.571,0.07392171]
[1773274768852,8.06395583,86.606,86.571,0.07392171]
[1773274769052,2.43270487,86.599,86.571,0.07392171]
[1773274769261,2.48599013,86.59,86.571,0.07392171]
[1773274770061,2.48599013,86.6,86.571,0.07392171]
[1773274770258,8.07041158,86.599,86.571,0.07392171]
[1773274770559,8.07041158,86.598,86.571,0.07392171]
[1773274770759,8.07041158,86.597,86.571,0.07392171]
[1773274770960,2.48599013,86.6,86.571,0.07392171]
[1773274771258,8.07153422,86.599,86.571,0.07392171]
[1773274771459,8.07153422,86.598,86.571,0.07392171]
[1773274771660,8.07153422,86.597,86.571,0.07392171]
[1773274771857,2.48929724,86.6,86.571,0.07392171]
[1773274772052,8.07300743,86.599,86.571,0.07392171]
[1773274772255,2.44816554,86.629,86.571,3.88877959]
[1773274772453,4.93746278,86.61,86.571,3.88877959]
[1773274772654,10.52439597,86.609,86.571,3.88877959]
[1773274772858,8.07623043,86.608,86.571,3.81485788]
[1773274773059,2.44816554,86.609,86.571,3.81485788]
[1773274773357,8.07639351,86.608,86.581,0.07282405]
[1773274773562,8.07639351,86.607,86.581,0.07282405]
[1773274773763,2.44816554,86.609,86.581,0.07282405]
[1773274774061,2.44814038,86.599,86.557,3.81485788]
[1773274774262,2.44814038,86.597,86.557,3.81485788]
[1773274775258,8.08095194,86.596,86.557,3.81485788]
[1773274775558,2.44435108,86.609,86.56,3.81485788]
[1773274775865,12.83635108,86.599,86.56,3.81485788]
[1773274776065,10.52445217,86.598,86.56,3.81485788]
[1773274776365,8.08010109,86.597,86.56,3.81485788]
[1773274776566,2.44435108,86.598,86.56,3.81485788]
[1773274776768,8.07842008,86.597,86.56,3.81485788]
[1773274776966,2.44435108,86.598,86.56,3.81485788]
[1773274777269,8.07763961,86.597,86.56,3.81485788]
[1773274777567,0.07695053,86.588,86.56,3.81485788]
[1773274779373,0.07695053,86.588,86.548,3.81485788]
[1773274779970,2.48929724,86.59,86.548,3.81485788]
[1773274780169,2.44435108,86.598,86.533,3.81485788]
[1773274780371,2.48929724,86.57,86.533,3.81485788]
[1773274780571,0.07729419,86.577,86.533,3.81485788]
[1773274782170,2.45679209,86.569,86.52,3.78052366]
[1773274783075,0.07483082,86.553,86.52,3.78052366]
[1773274785172,2.48929724,86.55,86.503,14.18352366]
[1773274785366,2.48929724,86.55,86.504,3.78052366]
[1773274786168,10.396,86.56,86.504,3.78052366]
[1773274786169,2.47180184,86.559,86.504,3.78052366]
[1773274786572,0.07570408,86.536,86.504,3.78052366]
[1773274788273,0.07570408,86.536,86.495,3.78052366]
[1773274788975,2.43444071,86.558,86.501,3.78052366]
[1773274790066,0.07947915,86.538,86.501,3.78052366]
[1773274790376,0.07947915,86.538,86.504,3.84697121]
[1773274792477,0.07947915,86.538,86.508,3.84697121]
[1773274795076,2.48929724,86.52,86.477,3.84697121]
[1773274795269,2.48929724,86.53,86.477,3.84697121]
[1773274795474,0.07947915,86.538,86.481,3.84697121]
[1773274795675,2.48929724,86.54,86.481,3.84697121]
[1773274796076,2.36207085,86.539,86.481,3.84697121]
[1773274796475,0.07838404,86.519,86.481,3.84697121]
[1773274797379,0.07838404,86.519,86.484,3.84697121]
[1773274798883,10.398,86.548,86.494,3.84697121]
[1773274799181,2.42396392,86.566,86.521,3.84697121]
[1773274799382,2.42396392,86.582,86.531,3.84697121]
[1773274799980,2.42396392,86.577,86.516,3.84697121]
[1773274800180,2.42396392,86.569,86.516,3.84697121]
[1773274800380,2.42396392,86.569,86.548,0.07770228]
[1773274804085,12.81896392,86.569,86.548,0.07770228]
[1773274804281,2.47927052,86.568,86.548,0.07770228]
[1773274804787,2.47927052,86.568,86.516,3.84697121]
[1773274804788,2.47927052,86.566,86.516,3.84697121]
[1773274805683,2.48929724,86.56,86.516,3.84697121]
[1773274805888,2.39695017,86.559,86.516,3.84697121]
[1773274806293,2.39695017,86.557,86.501,3.84697121]
[1773274806893,2.39695017,86.557,86.503,3.84697121]
[1773274807588,10.395,86.568,86.51,2.48929724]
[1773274807789,2.40033908,86.579,86.521,3.84697121]
[1773274808393,2.40033908,86.579,86.541,0.07720338]
[1773274812794,2.39933308,86.593,86.542,3.84697121]
[1773274813096,2.39443394,86.609,86.55,2.48929724]
[1773274813302,2.39443394,86.609,86.561,3.84697121]
[1773274813801,2.39443394,86.609,86.576,0.0874061]
[1773274814197,2.39443394,86.609,86.535,3.84697121]
[1773274814402,8.84170235,86.635,86.531,3.84697121]
[1773274814403,2.30702784,86.586,86.531,3.84697121]
[1773274815303,10.392,86.597,86.541,3.84697121]
[1773274815503,2.32911267,86.599,86.551,3.84697121]
[1773274815697,2.32911267,86.609,86.551,3.84697121]
[1773274816596,2.48929724,86.6,86.551,3.84697121]
[1773274817193,2.48929724,86.6,86.567,0.08712436]
[1773274818101,2.32911267,86.609,86.567,0.08712436]
[1773274819708,2.32911267,86.609,86.567,3.93409557]
[1773274825210,2.48929724,86.61,86.567,3.93409557]
[1773274825413,10.39,86.615,86.567,3.93409557]
[1773274826010,12.87929724,86.61,86.567,3.93409557]
[1773274826211,15.38420262,86.61,86.567,3.93409557]
[1773274826514,15.38420262,86.61,86.567,3.84697121]
[1773274826515,2.50490538,86.609,86.567,3.84697121]
[1773274827017,2.50490538,86.609,86.58,0.08478045]
[1773274830121,2.48929724,86.59,86.531,3.79228763]
[1773274831321,0.07382315,86.569,86.542,3.79228763]
[1773274835426,2.53909365,86.593,86.542,3.79228763]
[1773274836429,10.393,86.592,86.542,3.79228763]
[1773274836628,10.393,86.592,86.559,0.07651152]
[1773274840525,10.394,86.583,86.559,0.07651152]
[1773274841632,2.49070516,86.59,86.559,0.07651152]
[1773274843333,10.393,86.587,86.559,0.07651152]
[1773274843632,13.02078108,86.587,86.559,0.07651152]
[1773274847034,10.392,86.596,86.559,0.07651152]
[1773274847234,13.03482614,86.596,86.559,0.07651152]
[1773274847535,2.49070516,86.59,86.553,3.89802472]
[1773274847836,5.1335313,86.59,86.553,3.89802472]
[1773274848538,15.5265313,86.59,86.563,0.07549848]
[1773274850036,2.64052444,86.589,86.563,0.07549848]
[1773274851834,13.02489249,86.6,86.563,3.89854864]
[1773274852136,2.63289249,86.579,86.539,3.82305016]
[1773274852841,2.49070516,86.56,86.527,3.82305016]
[1773274853035,2.63289249,86.559,86.501,3.82305016]
[1773274853730,0.0775184,86.539,86.501,3.82305016]
[1773274854334,0.0775184,86.539,86.502,10.403]
[1773274854738,0.0775184,86.539,86.503,3.82305016]
[1773274856438,0.0775184,86.539,86.507,3.82305016]
[1773274861642,0.0775184,86.539,86.509,3.82305016]
[1773274861847,2.63289249,86.559,86.511,3.82305016]
[1773274862044,2.63289249,86.559,86.514,0.07689231]
[1773274862241,2.63289249,86.559,86.515,3.82305016]
[1773274862846,2.49070516,86.56,86.515,3.82305016]
[1773274862847,2.76199592,86.555,86.515,3.82305016]
[1773274867853,2.76199592,86.555,86.514,0.07689231]
[1773274868059,2.74026697,86.549,86.514,0.07689231]
[1773274868657,2.74026697,86.549,86.514,3.89994247]
[1773274878670,2.74026697,86.549,86.514,0.07689231]
[1773274881063,2.74026697,86.549,86.514,4.10121626]
[1773274882573,2.74026697,86.549,86.514,0.07689231]
[1773274882771,2.82260637,86.529,86.471,4.02432395]
[1773274883077,2.74571406,86.509,86.458,4.02432395]
[1773274883570,2.75407289,86.507,86.458,4.02432395]
[1773274883768,2.75407289,86.489,86.441,4.02432395]
[1773274884973,0.08766828,86.474,86.441,4.02432395]
[1773274885577,2.63635207,86.502,86.451,4.02432395]
[1773274885773,2.49070516,86.51,86.451,4.02432395]
[1773274886673,2.72402035,86.509,86.451,4.02432395]
[1773274887077,2.72402035,86.509,86.472,0.07719251]
[1773274887266,2.63410682,86.489,86.438,4.02432395]
[1773274887575,2.70979979,86.489,86.438,4.02432395]
[1773274887981,2.63410682,86.469,86.425,4.02432395]
[1773274888477,10.406,86.479,86.425,4.02432395]
[1773274888676,2.63410682,86.478,86.425,4.02432395]
[1773274889076,0.07818967,86.456,86.425,4.02432395]
[1773274889274,2.63410682,86.478,86.431,4.02432395]
[1773274889475,2.63410682,86.478,86.443,0.08066471]
[1773274892579,10.7352936,86.554,86.443,0.08066471]
[1773274892580,2.5122466,86.469,86.443,0.08066471]
[1773274893181,2.5122466,86.469,86.431,4.02432395]
[1773274893675,2.5122466,86.469,86.447,0.07816848]
[1773274894675,14.54,86.524,86.404,4.02432395]
[1773274894676,2.4878829,86.459,86.404,4.02432395]
[1773274895173,2.46381625,86.469,86.411,4.02432395]
[1773274895687,2.46381625,86.459,86.411,4.02432395]
[1773274896076,0.07870563,86.449,86.411,4.02432395]
[1773274897384,0.07870563,86.449,86.421,4.02432395]
[1773274897585,2.45166073,86.472,86.421,4.02432395]
[1773274897984,2.45166073,86.472,86.421,4.10978952]
[1773274898287,2.45166073,86.472,86.423,4.02432395]
[1773274899184,2.45166073,86.472,86.439,0.08759101]
[1773274901083,2.49669702,86.47,86.439,0.08759101]
[1773274901289,2.45087248,86.469,86.439,0.08759101]
[1773274902687,2.45087248,86.479,86.439,0.08759101]
[1773274904491,2.45794266,86.477,86.439,0.08759101]
[1773274905492,2.49669702,86.48,86.44,3.82186311]
[1773274905688,2.5082158,86.49,86.441,3.82186311]
[1773274905897,2.5082158,86.499,86.441,3.82186311]
[1773274906694,2.5082158,86.499,86.461,0.07404157]
[1773274907088,4.99520722,86.49,86.461,0.07404157]
[1773274907593,4.99520722,86.49,86.446,3.82186311]
[1773274907594,2.4985102,86.49,86.446,3.82186311]
[1773274907794,2.49669702,86.51,86.451,3.82186311]
[1773274907995,2.49669702,86.51,86.467,0.08033269]
[1773274908497,2.4985102,86.515,86.467,0.08033269]
[1773274909091,2.49669702,86.51,86.467,0.08033269]
[1773274912292,5.1252412,86.51,86.467,0.08033269]
[1773274912497,5.1252412,86.51,86.467,3.8097416]
[1773274913597,10.401,86.52,86.467,3.8097416]
[1773274913900,2.62766097,86.572,86.511,3.72940891]
[1773274914098,2.62766097,86.572,86.52,2.49669702]
[1773274914401,2.62766097,86.572,86.521,3.72940891]
[1773274914596,2.62766097,86.572,86.533,0.08690663]
[1773274915296,14.54,86.622,86.533,3.81631554]
[1773274915297,2.56001529,86.586,86.533,3.81631554]
[1773274915895,2.56001529,86.586,86.533,3.72940891]
[1773274916202,2.56001529,86.586,86.551,0.08101614]
[1773274917999,2.53244257,86.579,86.551,0.08101614]
[1773274918694,2.45142643,86.569,86.512,3.72940891]
[1773274920197,0.07936741,86.549,86.512,3.72940891]
[1773274921399,2.60187708,86.549,86.5,2.49669702]
[1773274921700,2.60187708,86.549,86.5,6.22610593]
[1773274921888,2.60187708,86.549,86.501,3.72940891]
[1773274922094,0.07936741,86.549,86.501,3.72940891]
[1773274924596,2.600067,86.549,86.501,3.72940891]
[1773274924795,2.600067,86.549,86.434,34.69]
[1773274924796,2.52069959,86.539,86.487,3.72940891]
[1773274925198,2.52224122,86.529,86.487,3.72940891]
[1773274925804,0.07782512,86.517,86.487,3.72940891]
[1773274927603,0.07782512,86.517,86.48,2.49669702]
[1773274927801,0.07782512,86.517,86.473,3.72940891]
[1773274928703,0.07782512,86.517,86.481,3.72940891]
[1773274929202,2.52224122,86.529,86.481,3.72940891]
[1773274930395,10.4,86.527,86.481,3.72940891]
[1773274930594,0.08269376,86.514,86.481,3.72940891]
[1773274945006,2.34575323,86.509,86.461,3.75628542]
[1773274945707,2.3560007,86.507,86.461,3.75628542]
[1773274946309,0.0838474,86.493,86.461,3.75628542]
[1773274947210,0.0838474,86.493,86.416,14.54]
[1773274947211,2.3560007,86.524,86.471,3.75628542]
[1773274947608,2.43520271,86.549,86.491,3.75628542]
[1773274947812,2.43520271,86.569,86.511,3.75628542]
[1773274948206,2.43520271,86.569,86.521,3.75628542]
[1773274948408,2.43520271,86.569,86.531,0.08732159]
[1773274950107,2.42786271,86.583,86.531,3.84360701]
[1773274950402,2.42786271,86.583,86.531,3.75628542]
[1773274950806,2.42786271,86.583,86.548,0.08550893]
[1773274951407,10.394,86.578,86.548,0.08550893]
[1773274951613,2.43424799,86.577,86.548,0.08550893]
[1773274951918,2.43424799,86.569,86.518,3.75628542]
[1773274952214,2.43424799,86.569,86.52,2.49669702]
[1773274952408,2.43424799,86.569,86.521,3.75628542]
[1773274953213,0.0849551,86.554,86.521,3.75628542]
[1773274975331,10.395,86.575,86.521,3.75628542]
[1773274975632,10.395,86.575,86.53,3.88857136]
[1773274976027,2.60435545,86.57,86.529,0.07324928]
[1773274976327,2.60435545,86.569,86.529,0.07324928]
[1773274977128,2.60435545,86.569,86.529,3.96182064]
[1773274977329,10.396,86.565,86.529,3.96182064]
[1773274978935,2.60435545,86.569,86.529,3.96182064]
[1773274980134,2.59604783,86.567,86.529,0.07324928]
[1773274980335,2.59604783,86.559,86.529,0.07324928]
[1773274980633,2.59604783,86.559,86.505,3.88857136]
[1773274981040,2.59604783,86.559,86.535,0.08517315]
[1773274981337,2.6225497,86.567,86.535,0.08517315]
[1773274981540,2.6225497,86.579,86.535,3.97374451]
[1773274981941,2.6225497,86.579,86.535,3.88857136]
[1773274982243,2.49110291,86.59,86.53,2.49110291]
[1773274982244,2.6225497,86.589,86.548,0.08574159]
[1773274982835,5.11365261,86.57,86.548,0.08574159]
[1773274983036,2.49110291,86.56,86.52,3.88857136]
[1773274984240,2.6225497,86.569,86.52,3.88857136]
[1773274984542,0.07742619,86.549,86.52,3.88857136]
[1773274995654,8.74683017,86.585,86.52,3.88857136]
[1773274995655,2.49844629,86.582,86.521,3.88857136]
[1773274995849,2.57587248,86.579,86.521,3.88857136]
[1773274996044,10.395,86.574,86.522,3.88857136]
[1773274996246,7.91945775,86.573,86.522,3.88857136]
[1773274996448,7.91945775,86.572,86.522,3.88857136]
[1773274996655,7.91945775,86.571,86.522,3.88857136]
[1773274996855,2.57587248,86.569,86.522,3.88857136]
[1773274997055,7.91945775,86.568,86.522,3.88857136]
[1773274997255,7.91945775,86.567,86.522,3.88857136]
[1773274997454,2.57587248,86.569,86.537,0.07621453]
[1773274997756,7.9608814,86.568,86.537,0.07621453]
[1773274997958,10.395,86.574,86.537,3.96478589]
[1773274998159,7.9617835,86.573,86.537,3.96478589]
[1773274998353,7.9617835,86.572,86.537,3.96478589]
[1773274998552,7.9617835,86.571,86.537,3.96478589]
[1773274998758,7.9617835,86.57,86.537,3.96478589]
[1773274999057,7.9617835,86.569,86.537,3.96478589]
[1773274999259,7.9617835,86.568,86.537,3.96478589]
[1773274999557,10.395,86.574,86.537,3.96478589]
[1773274999752,7.96044437,86.573,86.537,3.96478589]
[1773274999948,7.96044437,86.572,86.537,3.96478589]
[1773275000155,7.96044437,86.571,86.537,3.96478589]
[1773275000360,7.96044437,86.57,86.537,3.96478589]
[1773275000657,7.96044437,86.569,86.537,3.96478589]
[1773275000858,2.56414887,86.582,86.537,3.96478589]
[1773275001056,10.5189237,86.581,86.537,3.96478589]
[1773275001253,7.95654574,86.58,86.537,3.96478589]
[1773275001453,7.95654574,86.579,86.537,3.96478589]
[1773275001653,10.394,86.577,86.537,3.88857136]
[1773275001858,7.95654574,86.576,86.537,3.88857136]
[1773275002052,7.95654574,86.575,86.537,3.88857136]
[1773275002252,7.95654574,86.574,86.537,3.88857136]
[1773275002458,7.95654574,86.573,86.537,3.88857136]
[1773275002657,10.395,86.571,86.537,3.88857136]
[1773275002953,7.95654574,86.57,86.547,0.08160244]
[1773275003153,12.95737372,86.571,86.547,0.08160244]
[1773275003154,7.95654574,86.569,86.547,0.08160244]
[1773275003460,12.95737372,86.571,86.547,0.08160244]
[1773275003461,2.56237372,86.571,86.547,0.08160244]
[1773275003760,7.95554876,86.57,86.547,0.08160244]
[1773275003960,7.95554876,86.569,86.547,0.08160244]
[1773275004255,2.56237372,86.571,86.547,0.08160244]
[1773275004460,7.95372179,86.57,86.547,0.08160244]
[1773275004661,7.95372179,86.569,86.547,0.08160244]
[1773275004858,2.56237372,86.571,86.547,0.08160244]
[1773275005058,7.95372848,86.57,86.547,0.08160244]
[1773275005359,7.95372848,86.569,86.547,0.08160244]
[1773275005561,2.56237372,86.571,86.547,0.08160244]
[1773275005762,7.95345821,86.57,86.547,0.08160244]
[1773275005959,7.95345821,86.569,86.547,0.08160244]
[1773275006155,2.5672272,86.57,86.547,0.08160244]
[1773275006353,7.95236861,86.569,86.547,0.08160244]
[1773275006559,2.5672272,86.57,86.547,0.08160244]
[1773275006759,7.95161714,86.569,86.547,0.08160244]
[1773275006958,2.5672272,86.57,86.547,0.08160244]
[1773275007154,7.95161714,86.569,86.547,0.08160244]
[1773275007362,2.5672272,86.57,86.547,0.08160244]
[1773275007563,7.95069614,86.569,86.547,0.08160244]
[1773275007757,2.5672272,86.57,86.547,0.08160244]
[1773275007962,7.94990056,86.569,86.547,0.08160244]
[1773275008162,2.5672272,86.57,86.547,0.08160244]
[1773275008361,7.94532564,86.569,86.547,0.08160244]
[1773275008562,2.5672272,86.57,86.547,0.08160244]
[1773275008763,7.94530348,86.569,86.547,0.08160244]
[1773275009062,2.5672272,86.57,86.547,0.08160244]
[1773275009265,7.94500764,86.569,86.547,0.08160244]
[1773275009463,2.5672272,86.57,86.547,0.08160244]
[1773275009663,7.94514201,86.569,86.547,0.08160244]
[1773275009864,2.5672272,86.57,86.547,0.08160244]
[1773275010064,7.94511074,86.569,86.547,0.08160244]
[1773275010259,2.5672272,86.57,86.547,0.08160244]
[1773275010467,3.76029624,86.56,86.505,14.54]
[1773275010963,3.76029624,86.566,86.52,2.49110291]
[1773275011661,10.395,86.57,86.52,2.49110291]
[1773275011865,3.76029624,86.577,86.53,2.49110291]
[1773275012059,7.93704919,86.576,86.53,2.49110291]
[1773275012260,7.93704919,86.575,86.536,0.08277344]
[1773275012465,3.76029624,86.608,86.541,4.02756059]
[1773275012671,3.76029624,86.606,86.551,4.02756059]
[1773275012860,7.93843702,86.605,86.551,4.02756059]
[1773275013057,7.93843702,86.604,86.561,4.02756059]
[1773275013260,3.76029624,86.606,86.561,4.02756059]
[1773275013457,3.76029624,86.606,86.569,0.07525754]
[1773275015770,2.48851908,86.6,86.569,0.07525754]
[1773275016064,3.76029624,86.603,86.569,0.07525754]
[1773275016266,10.391,86.602,86.569,0.07525754]
[1773275016470,3.76029624,86.599,86.569,0.07525754]
[1773275017369,10.392,86.593,86.569,0.07525754]
[1773275018068,3.76029624,86.592,86.569,0.07525754]
[1773275021970,3.75146932,86.618,86.57,3.68857636]
[1773275022469,3.75146932,86.618,86.571,3.68857636]
[1773275024571,3.75146932,86.615,86.571,3.68857636]
[1773275025166,3.75146932,86.613,86.571,3.68857636]
[1773275025567,3.75146932,86.613,86.584,0.07706266]
[1773275031572,0.57756061,86.632,86.584,4.04736749]
[1773275031573,3.87584735,86.626,86.584,4.04736749]
[1773275031771,0.57756061,86.632,86.591,3.97030483]
[1773275032076,0.57756061,86.632,86.6,2.48851908]
[1773275032273,0.57756061,86.632,86.601,3.97030483]
[1773275032577,3.87584735,86.689,86.621,3.97030483]
[1773275032777,3.87584735,86.689,86.641,3.97030483]
[1773275033671,3.87584735,86.689,86.656,0.0828444]
[1773275040072,10.379,86.704,86.656,0.0828444]
[1773275040073,3.87584735,86.701,86.656,4.05314923]
[1773275040779,14.54,86.711,86.66,2.48851908]
[1773275041079,3.87584735,86.714,86.671,3.97030483]
[1773275043181,10.375,86.741,86.681,3.97030483]
[1773275043384,3.87584735,86.726,86.69,3.97030483]
[1773275043582,3.87584735,86.726,86.68,2.48851908]
[1773275043583,3.87584735,86.726,86.678,3.97030483]
[1773275044780,3.87584735,86.724,86.67,2.48851908]
[1773275044982,3.87584735,86.724,86.693,0.08437438]
[1773275045981,10.377,86.723,86.693,0.08437438]
[1773275046189,3.87584735,86.719,86.666,3.97030483]
[1773275046484,3.96408571,86.717,86.666,3.97030483]
[1773275046983,3.96408571,86.717,86.671,3.97030483]
[1773275047387,3.87584735,86.717,86.671,3.97030483]
[1773275047983,0.08555693,86.703,86.671,3.97030483]
[1773275049484,3.87584735,86.733,86.681,3.97030483]
[1773275049787,3.87584735,86.749,86.691,3.97030483]
[1773275050882,10.374,86.748,86.711,0.07483078]
[1773275051090,3.87584735,86.747,86.711,0.07483078]
[1773275051287,3.87584735,86.739,86.711,0.07483078]
[1773275051683,14.25084735,86.739,86.711,0.07483078]
[1773275051883,3.87584735,86.738,86.711,0.07483078]
[1773275053490,10.375,86.737,86.711,0.07483078]
[1773275053787,3.87584735,86.736,86.711,0.07483078]
[1773275055388,10.376,86.734,86.711,0.07483078]
[1773275056184,2.48851908,86.74,86.711,0.07483078]
[1773275056391,193.70498875,86.763,86.712,3.97030483]
[1773275056988,3.87584735,86.762,86.712,3.97030483]
[1773275057389,3.87584735,86.762,86.729,0.08608649]
[1773275057588,3.87584735,86.749,86.729,0.08608649]
[1773275057791,3.87584735,86.745,86.7,3.97030483]
[1773275058191,3.87584735,86.745,86.636,34.69]
[1773275058192,3.87584735,86.729,86.686,3.97030483]
[1773275058389,2.48851908,86.72,86.661,3.97030483]
[1773275058582,10.377,86.718,86.661,3.97030483]
[1773275058884,3.87584735,86.717,86.661,3.97030483]